bitfinex-derivatives/quotes_ETHF0:USTF0_20251116
["timestamp","ask_amount","ask_price","bid_price","bid_amount"]
[1763305695421,0.1509,3176.0,3175.9,19.37838433]
[1763305696122,3.27261667,3176.5,3175.9,18.5448]
[1763305696522,3.27261667,3176.5,3176.1,0.83436174]
[1763305696725,3.27261667,3176.5,3176.2,0.83436174]
[1763305696917,3.27261667,3176.5,3176.0,1.11248232]
[1763305696918,0.2387,3176.4,3176.3,15.342]
[1763305698923,3.27261667,3176.5,3176.3,15.342]
[1763305699229,3.27261667,3176.5,3176.3,16.17636174]
[1763305699522,0.2387,3176.4,3176.3,16.17636174]
[1763305699825,0.2387,3176.4,3176.3,15.342]
[1763305701025,0.2387,3176.2,3176.1,0.83436174]
[1763305701227,0.2387,3176.2,3176.1,16.17336174]
[1763305701619,3.27261667,3176.5,3176.1,15.339]
[1763305701922,3.27261667,3176.5,3176.2,0.83451843]
[1763305702114,0.2387,3176.2,3176.1,16.17351843]
[1763305702314,0.2387,3176.2,3176.1,15.339]
[1763305702728,0.2387,3176.1,3176.0,0.83451843]
[1763305702927,0.3896,3176.0,3175.9,4.04231843]
[1763305703131,0.3896,3176.0,3175.9,19.37667672]
[1763305703726,0.1509,3176.0,3175.9,19.37667672]
[1763305703927,0.3896,3176.0,3175.9,4.04267672]
[1763305704125,0.3896,3176.0,3175.9,3.2078]
[1763305704420,0.3896,3176.0,3175.9,18.5418]
[1763305705331,0.01147905,3176.0,3175.9,18.5418]
[1763305705530,0.2387,3175.9,3175.8,0.00398263]
[1763305705722,0.2387,3175.9,3175.6,0.00472328]
[1763305705723,0.2387,3175.7,3175.6,0.00472328]
[1763305706727,0.2387,3175.7,3175.6,0.00859864]
[1763305709631,0.2425,3175.4,3175.3,15.334]
[1763305710123,3.3555,3175.5,3175.4,0.1394]
[1763305710329,3.2078,3175.9,3175.4,18.6802]
[1763305710527,3.2078,3175.9,3175.4,18.68416843]
[1763305712625,0.1477,3175.5,3175.4,18.68416843]
[1763305712932,3.2078,3175.9,3175.4,18.68416843]
[1763305715334,2.8296476,3175.9,3175.4,18.68416843]
[1763305716230,0.1477,3175.5,3175.4,18.68416843]
[1763305716827,3.598,3175.5,3175.4,0.00396843]
[1763305717029,0.2425,3174.8,3174.7,10.569]
[1763305717220,0.2425,3174.7,3174.5,0.83487672]
[1763305717431,0.2425,3174.7,3174.3,1.11248232]
[1763305717432,0.2425,3174.7,3174.6,14.5868]
[1763305718137,0.24541485,3174.7,3174.6,14.59062237]
[1763305718730,0.24541485,3174.7,3174.6,3.21162237]
[1763305718934,0.24541485,3174.7,3174.6,3.35972237]
[1763305719536,0.00291485,3174.7,3174.6,3.35972237]
[1763305722143,0.00291485,3174.7,3174.6,18.69072237]
[1763305722643,0.00291485,3174.7,3174.6,15.48292237]
[1763305722837,0.00291485,3174.7,3174.6,18.69072237]
[1763305725344,3.2078,3175.4,3174.6,18.69072237]
[1763305726241,3.2078,3175.4,3174.6,19.52559909]
[1763305726434,3.21179064,3175.4,3174.6,19.52559909]
[1763305726632,3.21179064,3175.4,3174.6,18.69072237]
[1763305727138,3.21179064,3175.4,3174.6,19.52559909]
[1763305729140,3.21179064,3175.4,3174.7,0.83487672]
[1763305731142,0.00399064,3175.4,3174.7,0.83487672]
[1763305732145,0.00399064,3175.4,3174.8,0.83487672]
[1763305734251,0.00399064,3175.4,3174.7,1.11248232]
[1763305734252,0.1477,3175.0,3174.9,0.98297672]
[1763305735348,0.00399064,3175.4,3174.9,0.98297672]
[1763305735552,0.00399064,3175.4,3175.0,15.314]
[1763305735949,0.2425,3175.1,3175.0,15.5541]
[1763305736144,0.2425,3175.1,3175.0,15.314]
[1763305736347,0.2425,3175.1,3175.0,15.5541]
[1763305736543,0.2425,3175.1,3175.0,15.5521]
[1763305736743,0.2425,3175.1,3175.0,0.2401]
[1763305737854,0.3902,3175.0,3174.9,0.2401]
[1763305738353,0.2425,3174.9,3174.8,0.83487672]
[1763305738545,0.2425,3174.8,3174.7,15.31]
[1763305738745,0.1477,3175.0,3174.6,4.04649909]
[1763305738746,0.2495,3174.7,3174.6,4.04649909]
[1763305738949,6.0,3174.7,3174.4,1.11248232]
[1763305739146,3.2078,3174.5,3174.0,0.1411]
[1763305739346,3.2078,3174.5,3174.4,0.2308]
[1763305739752,3.2078,3174.5,3174.0,0.1411]
[1763305739955,3.2078,3174.5,3174.3,0.00843629]
[1763305740343,9.2078,3174.5,3174.3,0.00843629]
[1763305740538,7.13468789,3174.4,3173.5,0.1411]
[1763305740751,3.2078,3173.6,3173.0,0.0738]
[1763305740948,3.2078,3173.1,3172.5,0.1411]
[1763305741150,3.2078,3172.7,3172.5,0.1411]
[1763305741543,3.21046162,3172.7,3172.5,0.14506254]
[1763305741856,3.21046162,3172.7,3172.6,0.2308]
[1763305744658,3.2078,3173.6,3173.5,0.3719]
[1763305744956,3.3161,3173.6,3173.0,0.1411]
[1763305745548,3.3236431,3173.6,3173.0,0.1411]
[1763305746756,3.3236431,3173.6,3173.5,0.1411]
[1763305747158,0.1083,3173.1,3173.0,0.3719]
[1763305747460,3.2153431,3173.6,3173.0,0.3719]
[1763305747657,3.3236431,3173.6,3173.5,0.1411]
[1763305748456,3.2153431,3173.6,3173.5,0.3719]
[1763305748950,0.0075431,3173.6,3173.5,0.3719]
[1763305750245,0.1158431,3173.6,3173.5,0.3719]
[1763305750845,3.3236431,3173.6,3173.0,0.1411]
[1763305751049,0.1083,3173.1,3173.0,0.1411]
[1763305751256,3.2153431,3173.6,3173.0,0.3719]
[1763305753743,0.1083,3173.1,3173.0,0.3719]
[1763305755253,0.1083,3173.1,3173.0,0.1952]
[1763305756056,0.1083,3173.1,3172.6,3.2078]
[1763305756258,0.3391,3172.7,3172.6,3.2078]
[1763305758063,0.3391,3172.7,3172.6,3.5447]
[1763305760761,3.2078,3173.2,3172.6,3.5447]
[1763305761359,3.2078,3173.2,3173.1,0.3369]
[1763305761664,0.0075431,3173.6,3173.5,0.5321]
[1763305762264,0.3466431,3173.6,3173.5,0.5321]
[1763305762660,0.3466431,3173.6,3173.5,0.1952]
[1763305763066,0.0075431,3173.6,3173.5,0.5321]
[1763305766269,0.3466431,3173.6,3173.5,0.5321]
[1763305767768,0.0075431,3173.6,3173.5,0.5321]
[1763305769677,3.2078,3174.2,3174.1,0.3073]
[1763305770062,3.2078,3174.6,3174.5,0.1781]
[1763305770261,3.2078,3174.6,3174.5,0.4854]
[1763305770669,3.21020125,3174.6,3174.5,0.4854]
[1763305771268,3.52960125,3174.6,3174.5,0.4854]
[1763305772873,0.3194,3174.3,3174.2,0.31202328]
[1763305773378,3.21020125,3174.6,3174.2,0.31202328]
[1763305774281,3.52960125,3174.6,3174.5,0.4854]
[1763305774781,3.21020125,3174.6,3174.5,0.4854]
[1763305775876,3.52960125,3174.6,3174.5,0.4854]
[1763305776381,3.52960125,3174.6,3174.5,0.1781]
[1763305778778,0.3194,3174.3,3174.2,0.31202328]
[1763305779172,3.21020125,3174.6,3174.2,0.31202328]
[1763305779378,3.52960125,3174.6,3174.5,0.1781]
[1763305780387,3.52960125,3174.6,3174.5,0.4854]
[1763305780880,3.21020125,3174.6,3174.5,0.4854]
[1763305781386,3.52960125,3174.6,3174.5,0.4854]
[1763305782079,3.52960125,3174.6,3174.5,0.1781]
[1763305783387,3.52960125,3174.6,3174.5,0.4854]
[1763305783779,3.52960125,3174.6,3174.5,0.1781]
[1763305784487,0.32180125,3174.6,3174.5,0.1781]
[1763305784693,0.3194,3174.3,3174.2,0.00472328]
[1763305785085,0.3194,3174.3,3174.2,0.31202328]
[1763305788694,3.21020125,3174.6,3174.2,0.31202328]
[1763305790383,0.3194,3174.3,3174.2,0.31202328]
[1763305790583,3.21020125,3174.6,3174.5,0.1781]
[1763305790781,3.22980125,3174.6,3174.5,0.1781]
[1763305791794,3.22980125,3174.6,3174.2,0.00472328]
[1763305791795,0.0196,3174.3,3174.2,0.00472328]
[1763305793696,0.0196,3174.3,3174.2,0.31202328]
[1763305794495,0.0196,3174.3,3174.2,0.00472328]
[1763305799295,1.15076867,3174.3,3174.2,0.00472328]
[1763305801197,1.15076867,3174.3,3173.6,0.83823056]
[1763305801396,4.05772499,3174.1,3173.5,1.03343056]
[1763305801600,4.05772499,3174.1,3173.5,1.33213056]
[1763305801793,4.05772499,3174.1,3173.5,1.03343056]
[1763305801990,3.2078,3173.6,3173.3,0.83823056]
[1763305802192,3.2078,3173.6,3173.1,0.00472328]
[1763305802392,0.84992499,3173.4,3172.6,4.04603056]
[1763305802599,3.2078,3173.2,3172.6,4.04603056]
[1763305802788,3.2078,3173.2,3172.6,3.2078]
[1763305803105,3.2078,3173.2,3173.0,0.1667]
[1763305803394,3.2078,3173.2,3172.8,0.00472328]
[1763305804198,4.05772499,3173.2,3172.8,0.00472328]
[1763305805296,3.2078,3173.2,3172.8,0.00472328]
[1763305809004,3.2078,3173.2,3173.0,0.1667]
[1763305809402,3.2078,3173.2,3173.1,0.2987]
[1763305810804,3.2078,3173.2,3173.0,0.1667]
[1763305811704,3.2078,3173.2,3172.8,0.00472328]
[1763305812410,3.2078,3173.2,3172.5,0.18206254]
[1763305812604,3.2078,3172.8,3172.5,0.18206254]
[1763305813700,3.2078,3172.8,3172.5,0.17066254]
[1763305814710,3.2078,3172.8,3172.7,0.2815]
[1763305820435,0.00472328,3173.4,3172.7,0.2815]
[1763305820631,3.2078,3172.9,3172.5,0.17066254]
[1763305820839,3.2078,3172.9,3172.8,0.2815]
[1763305821937,3.2078,3173.3,3173.2,0.2815]
[1763305822127,0.00472328,3173.4,3173.3,0.2815]
[1763305831943,3.2078,3174.2,3174.1,0.2541]
[1763305835641,0.00472328,3174.5,3174.1,0.2541]
[1763305835838,0.00472328,3174.5,3174.4,0.2541]
[1763305843047,3.2078,3175.4,3175.2,0.2541]
[1763305843251,3.2078,3175.4,3175.0,0.1547]
[1763305844156,3.21031905,3175.4,3175.0,0.15734311]
[1763305845657,3.21031905,3175.4,3175.0,0.41144311]
[1763305846550,3.21031905,3175.4,3175.0,0.15734311]
[1763305847554,3.2078,3175.1,3175.0,0.15734311]
[1763305849160,0.00251905,3175.4,3175.3,0.2541]
[1763305850558,0.00251905,3175.4,3175.0,0.41144311]
[1763305850752,3.2078,3175.1,3175.0,0.41144311]
[1763305853858,0.00251905,3175.4,3175.3,0.2541]
[1763305861258,0.84992499,3176.1,3175.4,0.2405]
[1763305861259,3.2078,3175.9,3175.4,0.2405]
[1763305861467,3.2078,3175.9,3175.8,0.2405]
[1763305862063,3.2078,3175.9,3175.5,0.3908]
[1763305862364,3.21087587,3175.9,3175.5,0.1503]
[1763305862667,3.21087587,3175.9,3175.5,0.3908]
[1763305864670,3.21087587,3175.9,3175.8,0.2405]
[1763305870379,3.21087587,3175.9,3175.5,0.1503]
[1763305870878,3.21087587,3175.9,3175.8,0.2405]
[1763305871182,3.21087587,3175.9,3175.5,0.1503]
[1763305871981,3.21087587,3175.9,3175.8,0.2405]
[1763305874483,3.21087587,3175.9,3175.1,0.83823056]
[1763305874780,3.2078,3175.2,3175.1,0.2405]
[1763305875083,0.99292445,3175.2,3175.0,0.15734311]
[1763305875380,4.20072445,3175.2,3175.0,0.15734311]
[1763305875577,4.20072445,3175.2,3175.1,0.2375]
[1763305875774,0.99292445,3175.2,3175.1,0.2375]
[1763305876169,3.2078,3175.2,3175.0,0.00264311]
[1763305876383,3.2078,3175.2,3175.0,0.15074311]
[1763305876780,0.99292445,3175.1,3175.0,0.15074311]
[1763305876981,3.2078,3175.2,3175.0,0.38824311]
[1763305877283,3.2078,3175.2,3175.1,0.2375]
[1763305877284,4.20072445,3175.2,3175.1,0.2375]
[1763305877480,0.99292445,3175.2,3175.1,0.2375]
[1763305878184,4.20072445,3175.2,3175.1,0.2375]
[1763305880482,3.2078,3175.2,3175.1,0.2375]
[1763305880687,4.20072445,3175.2,3175.1,0.2375]
[1763305880886,0.99292445,3175.2,3175.1,0.2375]
[1763305883283,4.20072445,3175.6,3175.5,0.3856]
[1763305884492,4.20072445,3175.6,3175.5,0.1481]
[1763305884986,4.20072445,3175.6,3175.5,0.3856]
[1763305885186,4.20072445,3175.6,3175.1,0.83768626]
[1763305885187,4.20072445,3175.6,3175.0,1.22592937]
[1763305885383,4.20072445,3175.2,3175.0,0.38824311]
[1763305886090,4.20072445,3175.2,3175.1,0.2375]
[1763305886988,4.20072445,3175.2,3175.0,0.15074311]
[1763305887585,4.20072445,3175.2,3175.0,0.00264311]
[1763305887783,4.20072445,3175.2,3175.0,0.15074311]
[1763305889003,4.20072445,3175.2,3175.1,0.2469]
[1763305889898,4.20072445,3175.2,3175.0,0.15074311]
[1763305890804,4.20072445,3175.2,3175.0,0.39764311]
[1763305891506,0.99292445,3175.2,3175.0,0.39764311]
[1763305892706,5.1936489,3175.2,3175.0,0.00264311]
[1763305892904,0.93128704,3175.1,3175.0,0.00264311]
[1763305894402,0.93128704,3175.1,3174.5,3.3625]
[1763305894606,0.93128704,3175.1,3174.4,0.83768626]
[1763305894607,0.93128704,3174.6,3174.4,0.83768626]
[1763305894808,0.93128704,3174.6,3174.1,3.4547]
[1763305895408,0.93128704,3174.6,3174.1,3.45772085]
[1763305895602,0.93128704,3174.6,3174.5,0.1494]
[1763305895909,3.2078,3174.7,3174.5,0.1494]
[1763305896807,3.2078,3174.7,3174.6,0.2469]
[1763305899209,0.84856502,3175.3,3174.6,0.2469]
[1763305899210,4.05636502,3175.3,3174.6,0.2469]
[1763305902304,0.84856502,3175.2,3174.6,0.2469]
[1763305902803,3.2078,3174.9,3174.5,0.1494]
[1763305904815,3.2078,3174.9,3174.5,0.3963]
[1763305909104,0.84856502,3175.1,3174.5,0.3963]
[1763305910616,3.2078,3174.9,3174.5,0.3963]
[1763305911118,3.2078,3174.9,3174.8,0.2469]
[1763305911608,3.2078,3175.2,3175.0,0.1494]
[1763305911812,3.2078,3175.2,3175.0,0.3963]
[1763305912211,3.2078,3175.2,3175.0,0.1494]
[1763305917215,0.84856502,3175.3,3175.0,0.1494]
[1763305917418,4.05636502,3175.3,3175.0,0.1494]
[1763305918811,4.05636502,3175.3,3175.0,0.3963]
[1763305919120,4.05636502,3175.3,3175.0,0.1494]
[1763305921413,0.84856502,3175.2,3175.0,0.1494]
[1763305921721,4.05636502,3175.3,3175.0,0.1494]
[1763305922421,0.84856502,3175.2,3175.0,0.1494]
[1763305924922,0.84980263,3175.2,3175.0,0.1494]
[1763305925226,0.84980263,3175.1,3174.6,0.83906084]
[1763305925428,3.2078,3174.7,3174.5,0.1494]
[1763305926630,3.2078,3174.7,3174.3,0.83906084]
[1763305926933,3.2078,3174.7,3174.1,0.00302085]
[1763305926934,0.84980263,3174.4,3174.1,0.00302085]
[1763305927114,3.2078,3174.3,3174.1,0.00302085]
[1763305928323,3.2078,3174.3,3174.1,0.24202085]
[1763305928714,3.2078,3174.3,3174.1,0.00302085]
[1763305930218,0.84980263,3174.6,3174.1,0.00302085]
[1763305930421,3.2078,3174.3,3174.1,0.00302085]
[1763305931323,3.2078,3174.3,3174.1,0.24202085]
[1763305931520,0.84980263,3174.6,3174.1,0.24202085]
[1763305931922,4.05760263,3174.7,3174.6,0.239]
[1763305932123,3.2078,3174.7,3174.6,0.239]
[1763305934532,4.05760263,3175.2,3175.0,0.3788]
[1763305938237,4.05760263,3175.2,3175.0,0.1398]
[1763305939939,4.05760263,3175.2,3174.5,0.3698]
[1763305943736,4.05760263,3175.2,3175.0,0.1496]
[1763305949340,4.05760263,3175.2,3174.5,0.1398]
[1763305949745,4.05760263,3175.2,3174.5,0.3812]
[1763305952250,0.84980263,3175.1,3174.5,0.3812]
[1763305953251,4.05760263,3175.2,3174.5,0.3812]
[1763305954351,0.84980263,3175.1,3174.5,0.3812]
[1763305955652,4.05760263,3175.2,3174.5,1.22026084]
[1763305955955,0.84980263,3175.1,3174.5,1.22026084]
[1763305956646,3.2078,3175.0,3174.5,1.22026084]
[1763305956844,3.2078,3175.0,3174.9,0.2414]
[1763305957148,3.2078,3175.5,3175.4,0.2414]
[1763305959761,3.2078,3175.5,3175.0,0.98661741]
[1763305967662,3.2078,3175.6,3175.0,0.98661741]
[1763305968361,3.2078,3175.6,3175.0,0.1481]
[1763305968564,4.05704068,3175.6,3175.0,0.1481]
[1763305969356,3.2078,3175.2,3174.8,0.83851741]
[1763305969557,3.2078,3175.2,3174.5,0.1398]
[1763305969558,0.84924068,3175.1,3174.5,0.1398]
[1763305969769,0.84924068,3175.1,3174.3,3.2078]
[1763305969770,0.84924068,3175.0,3174.3,3.2078]
[1763305970158,0.84924068,3174.9,3174.3,3.2078]
[1763305970359,3.2078,3174.7,3174.3,3.2078]
[1763305971865,3.2078,3174.7,3174.5,0.1481]
[1763305972067,3.2078,3174.7,3174.1,0.24442085]
[1763305973368,3.2078,3174.7,3174.5,0.1481]
[1763305973871,3.2078,3174.7,3174.1,0.24442085]
[1763305975169,3.2078,3174.7,3174.5,0.1481]
[1763305976466,3.2078,3174.7,3174.5,0.3895]
[1763305977171,3.2078,3174.7,3174.5,0.1481]
[1763305980171,3.2078,3174.7,3174.6,0.2316]
[1763305980475,0.84924068,3175.0,3174.5,0.3797]
[1763305980972,3.2078,3174.7,3174.5,0.3797]
[1763305981174,3.2078,3174.7,3174.5,0.1481]
[1763305982072,3.2078,3174.7,3174.1,0.00302085]
[1763305982557,3.2078,3174.7,3174.1,0.23462085]
[1763305983168,3.2078,3174.7,3174.5,0.1453]
[1763305983372,3.2078,3174.7,3174.5,0.3769]
[1763305984768,3.2078,3174.7,3174.5,0.1453]
[1763305986977,3.2078,3174.8,3174.5,0.1453]
[1763305987367,3.2078,3174.8,3174.1,3.21082085]
[1763305987573,3.2078,3174.8,3174.1,3.44242085]
[1763305988075,0.84924068,3175.0,3174.1,0.23462085]
[1763305988278,3.2078,3174.8,3174.1,3.44242085]
[1763305989977,3.2078,3174.8,3174.5,0.1453]
[1763305991279,3.2078,3174.8,3174.5,0.3769]
[1763305991875,4.05704068,3175.2,3175.1,0.2316]
[1763305992070,0.84924068,3175.5,3175.1,0.2316]
[1763305992275,4.05704068,3175.6,3175.5,0.1453]
[1763305993373,3.2078,3175.6,3175.5,0.1453]
[1763305993580,3.2078,3175.6,3175.5,0.3769]
[1763305998188,3.2078,3175.6,3175.5,0.1392]
[1763305999282,3.2078,3175.6,3175.0,1.21001741]
[1763305999876,3.2078,3175.6,3175.5,0.1392]
[1763306000884,3.2078,3175.6,3175.5,0.3654]
[1763306001079,3.2078,3175.6,3175.5,0.1392]
[1763306001583,3.2078,3175.6,3175.0,0.1453]
[1763306002891,3.2078,3175.6,3175.5,0.1392]
[1763306004088,0.00307587,3175.9,3175.5,0.1392]
[1763306004388,3.2078,3175.8,3175.5,0.1392]
[1763306007288,3.2078,3175.8,3175.5,0.3654]
[1763306007489,3.2078,3175.8,3175.5,0.1392]
[1763306008384,3.2078,3175.8,3175.5,0.3654]
[1763306009895,3.2078,3175.8,3175.5,0.1392]
[1763306010588,0.00307587,3175.9,3175.7,0.2347]
[1763306010789,0.00307587,3175.9,3175.8,0.2347]
[1763306012185,0.00472328,3176.0,3175.9,0.2347]
[1763306013198,0.00790339,3176.0,3175.9,0.2347]
[1763306015291,0.00790339,3176.0,3175.8,3.2078]
[1763306015491,0.00790339,3176.0,3175.6,0.23942328]
[1763306015997,0.00790339,3176.0,3175.6,0.00472328]
[1763306016788,0.00790339,3176.0,3175.6,0.23942328]
[1763306016983,0.00790339,3176.0,3175.9,0.2347]
[1763306017201,7.70820857,3176.0,3174.5,4.19161741]
[1763306017498,3.2078,3175.5,3174.5,4.19161741]
[1763306017894,3.2078,3175.5,3174.5,3.3531]
[1763306018294,4.05500504,3175.5,3174.9,0.00472328]
[1763306018900,3.2078,3175.5,3175.0,0.38]
[1763306019299,4.05500504,3175.5,3175.0,0.1453]
[1763306021299,0.84720504,3175.4,3175.0,0.1453]
[1763306023102,0.84720504,3175.4,3175.0,0.38]
[1763306024395,4.05500504,3175.5,3175.0,0.1453]
[1763306025405,3.2078,3175.5,3175.0,0.1453]
[1763306026295,3.2078,3175.1,3175.0,0.1423]
[1763306026503,3.2078,3175.1,3174.3,0.83851741]
[1763306026696,3.2078,3174.4,3174.1,0.00302085]
[1763306030306,3.2078,3174.4,3174.1,0.23772085]
[1763306035602,3.2078,3174.4,3174.1,0.00302085]
[1763306041521,3.2078,3174.4,3174.3,0.2262]
[1763306042224,3.2078,3174.4,3174.1,0.00302085]
[1763306042716,3.2078,3174.4,3174.3,0.2262]
[1763306043523,3.2078,3174.4,3174.1,0.00302085]
[1763306043720,4.05500504,3174.4,3174.1,0.00302085]
[1763306044225,0.84720504,3174.3,3174.1,0.00302085]
[1763306045718,0.84720504,3174.3,3173.9,0.00472328]
[1763306045915,3.2078,3174.0,3173.0,0.1423]
[1763306046108,3.2078,3173.6,3173.0,0.1423]
[1763306046321,3.2078,3174.0,3173.0,0.1423]
[1763306046819,3.21002928,3174.0,3173.5,0.37249902]
[1763306047716,3.21002928,3174.0,3173.9,0.2262]
[1763306048824,3.21002928,3174.0,3173.5,0.14629902]
[1763306052825,3.21002928,3174.0,3173.9,0.2262]
[1763306056027,0.00222928,3174.0,3173.9,0.2262]
[1763306059824,0.00222928,3174.0,3173.9,1.06471741]
[1763306060832,4.05500504,3174.4,3173.6,3.2078]
[1763306060833,3.2078,3174.4,3174.3,0.229]
[1763306061341,4.05500504,3174.8,3174.5,0.3768]
[1763306061643,3.2078,3174.8,3174.5,0.3768]
[1763306062240,3.21123655,3174.8,3174.5,0.3768]
[1763306062627,3.21123655,3174.8,3174.7,0.229]
[1763306066234,3.21123655,3174.8,3174.5,0.1478]
[1763306066635,3.21123655,3174.8,3174.7,0.229]
[1763306069938,0.00343655,3174.8,3174.7,0.229]
[1763306070644,0.00343655,3174.8,3174.5,0.3768]
[1763306073243,0.00343655,3174.8,3174.7,0.2282]
[1763306073839,0.00343655,3174.8,3174.5,0.1478]
[1763306074546,0.00343655,3174.8,3174.7,0.2282]
[1763306075752,0.00343655,3174.8,3174.5,0.376]
[1763306076246,0.00343655,3174.8,3174.7,0.2282]
[1763306076641,0.00343655,3174.8,3174.5,0.376]
[1763306077346,0.00343655,3174.8,3174.7,0.2282]
[1763306079050,0.00343655,3174.8,3174.5,0.1478]
[1763306079253,0.00343655,3174.8,3174.5,0.376]
[1763306079549,0.00343655,3174.8,3174.1,3.2078]
[1763306079748,3.2078,3174.2,3174.0,0.1478]
[1763306080050,0.84759614,3174.1,3173.5,0.14629902]
[1763306080251,3.2078,3173.7,3173.5,0.14629902]
[1763306081257,3.2078,3173.7,3173.5,0.37449902]
[1763306084339,4.05539614,3174.1,3173.5,0.37449902]
[1763306084745,3.2078,3174.1,3173.5,0.37449902]
[1763306085058,3.2078,3174.1,3174.0,0.1355]
[1763306085849,3.2078,3174.1,3173.5,0.14629902]
[1763306086057,3.2078,3174.1,3173.5,0.37449902]
[1763306086648,3.2078,3173.7,3173.5,0.37449902]
[1763306087052,3.2078,3173.7,3173.6,0.2282]
[1763306088959,3.2078,3174.1,3174.0,0.1355]
[1763306090655,3.2078,3174.1,3173.5,0.14629902]
[1763306091659,3.2078,3174.1,3173.5,0.37449902]
[1763306093357,3.2078,3173.7,3173.5,0.37449902]
[1763306093549,3.2078,3173.7,3173.5,0.14629902]
[1763306098463,3.2078,3173.7,3173.5,0.00399902]
[1763306101561,3.2078,3173.7,3172.6,1.07847011]
[1763306101763,3.2078,3172.9,3172.5,0.376]
[1763306102359,3.2078,3172.9,3172.5,0.1355]
[1763306102561,3.2078,3172.9,3172.5,0.00329074]
[1763306102762,4.05479515,3172.9,3172.4,0.00472328]
[1763306102968,3.2078,3172.5,3172.4,0.00472328]
[1763306103771,3.21011928,3172.5,3172.4,0.0072738]
[1763306104869,3.21011928,3172.5,3171.4,3.2078]
[1763306105070,3.2078,3172.0,3171.1,0.83797011]
[1763306105366,3.2078,3172.0,3171.0,3.3472]
[1763306105762,3.2078,3172.0,3171.0,3.59706275]
[1763306105971,3.2078,3172.0,3171.5,0.13810693]
[1763306106166,3.2078,3172.0,3171.0,3.3472]
[1763306106368,3.2078,3171.1,3171.0,0.1394]
[1763306106560,3.2078,3171.1,3170.5,0.1394]
[1763306106869,3.2078,3170.7,3170.5,0.1394]
[1763306107168,3.2078,3170.7,3170.5,0.14204568]
[1763306107466,3.2078,3170.7,3170.5,0.00264568]
[1763306107871,3.2078,3171.1,3171.0,0.3799]
[1763306108466,3.2078,3171.1,3170.6,3.2078]
[1763306109570,3.2078,3171.1,3170.6,3.4483]
[1763306109966,3.2078,3171.1,3171.0,0.1394]
[1763306110175,3.2078,3171.1,3171.0,0.3799]
[1763306110368,3.2078,3171.1,3171.0,0.1394]
[1763306112073,3.2078,3171.1,3170.6,3.4483]
[1763306113471,3.2078,3171.1,3171.0,0.1394]
[1763306113770,3.2078,3171.1,3171.0,0.3799]
[1763306115864,3.2078,3171.1,3170.6,3.2078]
[1763306116270,3.2078,3171.1,3170.6,3.4569]
[1763306116573,3.2078,3171.1,3171.0,0.1416]
[1763306117474,3.2078,3171.1,3170.5,0.14204568]
[1763306118671,3.2078,3170.7,3170.5,0.14204568]
[1763306119881,3.2078,3171.1,3171.0,0.3907]
[1763306120178,3.2078,3171.1,3171.0,0.1416]
[1763306122470,3.2078,3171.1,3171.0,0.3907]
[1763306124581,0.00472328,3171.4,3171.0,0.3907]
[1763306125777,0.00472328,3171.4,3171.0,0.1416]
[1763306127073,0.00472328,3171.4,3171.3,0.2491]
[1763306127270,3.2078,3172.3,3172.0,0.1416]
[1763306128075,3.2078,3172.3,3172.0,0.3907]
[1763306128277,3.2078,3172.3,3172.2,0.2491]
[1763306129192,3.2078,3172.3,3172.0,0.1416]
[1763306129381,3.2078,3172.3,3171.8,0.00473097]
[1763306129578,3.2078,3171.9,3171.8,0.00473097]
[1763306132184,4.05479515,3171.9,3171.8,0.00473097]
[1763306132781,3.2078,3171.9,3171.8,0.00473097]
[1763306133186,4.05479515,3171.9,3171.8,0.00473097]
[1763306133490,3.2078,3171.9,3171.8,0.24833097]
[1763306133984,3.2078,3171.9,3171.8,0.00473097]
[1763306135793,3.2078,3171.9,3171.8,0.24833097]
[1763306137191,3.2078,3171.9,3171.8,0.00473097]
[1763306138393,3.2078,3171.9,3171.8,0.24833097]
[1763306141702,3.2078,3172.3,3172.2,0.2436]
[1763306143203,0.00705025,3172.5,3172.4,0.2436]
[1763306148298,0.00705025,3172.5,3172.0,3.3517]
[1763306148800,0.00705025,3172.5,3172.4,0.2436]
[1763306156703,0.00705025,3172.5,3172.0,3.3517]
[1763306157098,0.00705025,3172.5,3172.4,0.2436]
[1763306159006,3.2078,3172.8,3172.7,0.2416]
[1763306160109,3.21044997,3172.8,3172.7,0.2416]
[1763306161405,2.45674997,3172.8,3172.7,0.2416]
[1763306162512,0.00264997,3172.8,3172.7,0.2416]
[1763306163610,0.00473097,3173.1,3173.0,0.3794]
[1763306164713,0.00748679,3173.1,3173.0,0.38292056]
[1763306164910,0.25028679,3173.1,3173.0,0.00352056]
[1763306165106,0.2428,3172.2,3172.1,1.07957011]
[1763306165309,0.2428,3172.2,3172.1,0.2416]
[1763306166102,0.2428,3172.2,3172.1,0.24471908]
[1763306166500,0.2428,3172.5,3172.4,0.2416]
[1763306169515,4.05479515,3172.7,3172.6,0.2416]
[1763306169813,4.29759515,3172.7,3172.6,0.2416]
[1763306171415,3.2078,3172.7,3172.6,0.2416]
[1763306172017,1.08979515,3172.9,3172.8,0.2416]
[1763306172613,0.84699515,3172.9,3172.8,0.2416]
[1763306173719,0.00748679,3173.1,3173.0,0.3794]
[1763306180120,0.00748679,3173.1,3173.0,3.5872]
[1763306180519,0.00748679,3173.1,3173.0,4.42517011]
[1763306181129,0.00748679,3173.1,3173.0,3.5872]
[1763306191729,0.00748679,3173.1,3173.0,0.3794]
[1763306192133,0.23508679,3173.1,3173.0,0.3794]
[1763306193231,0.00748679,3173.1,3173.0,0.3794]
[1763306196733,0.23508679,3173.1,3173.0,0.3794]
[1763306197727,0.00748679,3173.1,3173.0,0.3794]
[1763306197928,3.2078,3174.0,3173.7,0.2374]
[1763306198239,3.2078,3174.0,3173.9,0.2374]
[1763306198426,3.5761,3174.0,3173.3,4.04691532]
[1763306199032,3.44419339,3174.0,3173.9,0.2374]
[1763306199437,3.21659339,3174.0,3173.9,0.2374]
[1763306200541,3.58489339,3174.0,3173.5,0.98471532]
[1763306200833,0.2276,3173.6,3173.5,1.22211532]
[1763306201036,0.2276,3173.4,3173.3,0.84384629]
[1763306201230,0.2276,3173.4,3173.3,0.00473097]
[1763306202436,1.07459515,3173.6,3173.5,0.2374]